fUSD/lending_fUSD_20240415
["ID","MTS","AMOUNT","RATE_DAILY","PERIOD"]
[322683964,1713214239313,-339.86604696,0.000207,2]
[322683965,1713214239322,-339.86604696,0.000207,2]
[322683966,1713214239332,-339.86604696,0.000207,2]
[322683967,1713214239341,-339.86604696,0.000207,2]
[322683968,1713214239350,-339.86604696,0.000207,2]
[322683970,1713214239359,-339.86604696,0.000207,2]
[322683971,1713214239369,-339.86604696,0.000207,2]
[322683972,1713214239377,-339.86604696,0.000207,2]
[322683973,1713214239386,-339.86604696,0.000207,2]
[322683974,1713214239395,-339.86604696,0.000207,2]
[322683975,1713214239404,-339.86604696,0.000207,2]
[322683976,1713214239413,-339.86604696,0.000207,2]
[322683977,1713214239422,-339.86604696,0.000207,2]
[322683978,1713214239431,-339.86604696,0.000207,2]
[322683980,1713214239441,-339.86604696,0.000207,2]
[322683982,1713214239450,-339.86604696,0.000207,2]
[322683984,1713214239459,-339.86604696,0.000207,2]
[322683985,1713214239468,-267.85,0.00020714,2]
[322683986,1713214239477,-1597.1904,0.00020719,2]
[322683987,1713214239486,-480.0,0.00020739,2]
[322683988,1713214239495,-259.55760251,0.00020757,2]
[322683989,1713214239504,-250.86846927,0.00020788,2]
[322683990,1713214239513,-240.10406316,0.00020823,2]
[322683991,1713214239521,-193.49329168,0.00020824,2]
[322683992,1713214239531,-1000.0,0.00020831,2]
[322683993,1713214239540,-200.0,0.00020832,2]
[322683994,1713214239549,-1000.0,0.00020832,2]
[322683995,1713214239559,-200.0,0.00020832,2]
[322683996,1713214239569,-240.10406314,0.00020862,2]
[322683997,1713214239581,-213.0,0.0002088,2]
[322683998,1713214239591,-439.63,0.00020885,2]
[322683999,1713214239600,-6769.3144,0.00020898,2]
[322684000,1713214239609,-9671.5591,0.00020898,2]
[322684001,1713214239619,-13880.275,0.00020899,2]
[322684002,1713214239628,-199.51477624,0.00020899,2]
[322684003,1713214239637,-1000.0,0.000209,2]
[322684004,1713214239646,-1000.0,0.000209,2]
[322684005,1713214239656,-10000.0,0.000209,2]
[322684006,1713214239665,-5800.0,0.000209,2]
[322684007,1713214239673,-2105.86398704,0.000209,2]
[322684008,1713214239682,-2105.8639869,0.000209,2]
[322684009,1713214239692,-2105.8639869,0.000209,2]
[322684010,1713214239701,-2105.8639869,0.000209,2]
[322684011,1713214239710,-2105.8639869,0.000209,2]
[322684012,1713214239719,-2105.8639869,0.000209,2]
[322684013,1713214239728,-2105.8639869,0.000209,2]
[322684014,1713214239737,-2105.8639869,0.000209,2]
[322684015,1713214239746,-2105.8639869,0.000209,2]
[322684016,1713214239755,-259.55760251,0.000209,2]
[322684017,1713214239764,-2105.8639869,0.000209,2]
[322684018,1713214239774,-2105.8639869,0.000209,2]
[322684019,1713214239783,-2105.8639869,0.000209,2]
[322684020,1713214239792,-2105.8639869,0.000209,2]
[322684021,1713214239801,-2105.8639869,0.000209,2]
[322684022,1713214239812,-2105.8639869,0.000209,2]
[322684023,1713214239821,-2105.8639869,0.000209,2]
[322684024,1713214239831,-2105.8639869,0.000209,2]
[322684025,1713214239840,-2105.8639869,0.000209,2]
[322684026,1713214239849,-2105.8639869,0.000209,2]
[322684028,1713214239858,-2105.8639869,0.000209,2]
[322684029,1713214239867,-240.10406314,0.000209,2]
[322684030,1713214239876,-5493.99541848,0.00020917,2]
[322684032,1713214240337,-54243.59069381,0.00020917,2]
[322684034,1713214240423,-37745.25321068,0.00020917,2]
[322684035,1713214240434,-771.17090468,0.00020917,2]
[322684036,1713214240445,-936.10398089,0.00020917,2]
[322684037,1713214240456,-2884.45980736,0.00020918,2]
[322684038,1713214240467,-97482.83932297,0.00020919,2]
[322684039,1713214240478,-259.71292122,0.00020919,2]
[322684040,1713214240489,-259.71292122,0.00020919,2]
[322684041,1713214240792,-1677.88216201,0.0002092,2]
[322684042,1713214240817,-2884.45980736,0.0002092,2]
[322684043,1713214240827,-43491.41827086,0.00020921,2]
[322684044,1713214240843,-53991.42105211,0.00020921,2]
[322684045,1713214240853,-936.10398089,0.00020923,2]
[322684046,1713214240862,-162.06976837,0.00020923,2]
[322684047,1713214240872,-936.10398089,0.00020923,2]
[322684048,1713214240881,-5530.63063812,0.00020923,2]
[322684049,1713214240893,-1893.850715,0.00020923,2]
[322684050,1713214240904,-642.94999995,0.00020923,2]
[322684051,1713214241036,-765.40358805,0.00020923,2]
[322684052,1713214241048,-630.4,0.00020923,2]
[322684053,1713214241062,-3019.36388,0.00020923,2]
[322684054,1713214241074,-12586.69852325,0.00020923,2]
[322684055,1713214241085,-12602.2,0.00020923,2]
[322684056,1713214241162,-59811.3419786,0.00020923,2]
[322684057,1713214241171,-1677.88216201,0.00020924,2]
[322684058,1713214241181,-771.17090468,0.00020924,2]
[322684059,1713214241190,-259.71292122,0.00020925,2]
[322684060,1713214241200,-267.45828025,0.00020925,2]
[322684061,1713214241209,-771.17090469,0.00020925,2]
[322684062,1713214241219,-250.83522669,0.00020926,2]
[322684063,1713214241228,-293.88567399,0.00020926,2]
[322684064,1713214241237,-877.9232934,0.00020927,2]
[322684065,1713214241246,-877.9232934,0.00020929,2]
[322684066,1713214241255,-162.06976837,0.00020931,2]
[322684067,1713214241265,-771.17090469,0.00020931,2]
[322684068,1713214241274,-162.06976837,0.00020932,2]
[322684069,1713214241283,-360.55747592,0.00020932,2]
[322684070,1713214241292,-360.55747592,0.00020933,2]
[322684071,1713214241301,-1677.88216201,0.00020933,2]
[322684072,1713214241314,-360.55747592,0.00020933,2]
[322684073,1713214241323,-771.17090468,0.00020934,2]
[322684074,1713214241332,-293.88567399,0.00020934,2]
[322684075,1713214241342,-162.06976837,0.00020935,2]
[322684076,1713214241350,-1677.88216201,0.00020936,2]
[322684077,1713214241359,-293.88567399,0.00020936,2]
[322684078,1713214241368,-156.81217716,0.00020936,2]
[322684079,1713214241377,-771.17090468,0.00020936,2]
[322684080,1713214241386,-293.88567399,0.00020937,2]
[322684081,1713214241396,-250.83522669,0.00020938,2]
[322684082,1713214241405,-771.17090468,0.00020939,2]
[322684083,1713214241414,-293.88567399,0.0002094,2]
[322684084,1713214241424,-2884.45980736,0.00020941,2]
[322684085,1713214241433,-250.83522669,0.00020942,2]
[322684086,1713214241442,-259.71292122,0.00020943,2]
[322684087,1713214241451,-259.71292123,0.00020943,2]
[322684088,1713214241460,-2884.45980736,0.00020944,2]
[322684089,1713214241470,-771.17090469,0.00020945,2]
[322684090,1713214241479,-250.83522669,0.00020945,2]
[322684091,1713214241488,-877.9232934,0.00020946,2]
[322684092,1713214241497,-259.71292123,0.00020946,2]
[322684093,1713214241506,-250.83522669,0.00020946,2]
[322684094,1713214241515,-293.88567399,0.00020947,2]
[322684095,1713214241524,-360.55747592,0.00020947,2]
[322684096,1713214241534,-1677.88216201,0.00020948,2]
[322684097,1713214241543,-936.10398089,0.00020949,2]
[322684098,1713214241557,-936.10398089,0.0002095,2]
[322684099,1713214241566,-267.45828025,0.00020951,2]
[322684100,1713214241575,-97482.83932297,0.00020952,2]
[322684101,1713214241584,-360.55747592,0.00020952,2]
[322684102,1713214241594,-877.9232934,0.00020953,2]
[322684103,1713214241603,-259.71292122,0.00020955,2]
[322684104,1713214241612,-250.83522669,0.00020955,2]
[322684105,1713214241622,-162.06976837,0.00020956,2]
[322684106,1713214241631,-162.06976837,0.00020957,2]
[322684107,1713214241641,-771.17090469,0.00020958,2]
[322684108,1713214241650,-2884.45980736,0.00020958,2]
[322684109,1713214241659,-259.71292123,0.0002096,2]
[322684110,1713214241668,-259.71292122,0.0002096,2]
[322684111,1713214241677,-162.06976837,0.00020961,2]
[322684112,1713214241686,-360.55747592,0.00020961,2]
[322684113,1713214241695,-360.55747592,0.00020962,2]
[322684114,1713214241705,-267.45828025,0.00020964,2]
[322684115,1713214241714,-2884.45980736,0.00020965,2]
[322684116,1713214241724,-267.45828025,0.00020967,2]
[322684117,1713214241733,-771.17090468,0.00020968,2]
[322684118,1713214241742,-267.45828025,0.00020968,2]
[322684119,1713214241752,-2884.45980736,0.00020969,2]
[322684120,1713214241761,-1000.0,0.0002097,2]
[322684121,1713214241770,-1550.91985744,0.0002097,2]
[322684122,1713214241779,-925.75394071,0.0002097,2]
[322684123,1713214241788,-259.71292123,0.00020971,2]
[322684124,1713214241797,-259.71292123,0.00020972,2]
[322684125,1713214241808,-259.71292123,0.00020972,2]
[322684126,1713214241818,-877.9232934,0.00020972,2]
[322684127,1713214241827,-771.17090469,0.00020972,2]
[322684128,1713214241837,-771.17090469,0.00020973,2]
[322684129,1713214241847,-162.06976837,0.00020973,2]
[322684130,1713214241856,-162.06976837,0.00020973,2]
[322684131,1713214241866,-250.83522669,0.00020973,2]
[322684132,1713214241875,-2884.45980736,0.00020974,2]
[322684133,1713214241884,-259.71292122,0.00020975,2]
[322684134,1713214241893,-250.83522669,0.00020976,2]
[322684135,1713214241902,-936.10398089,0.00020977,2]
[322684136,1713214241912,-2884.45980736,0.00020977,2]
[322684137,1713214241921,-155.47526339,0.00020977,2]
[322684138,1713214241930,-771.17090468,0.00020977,2]
[322684139,1713214241939,-936.10398089,0.00020977,2]
[322684140,1713214241949,-360.55747592,0.00020977,2]
[322684141,1713214241958,-877.9232934,0.00020977,2]
[322684142,1713214241966,-102269.85909409,0.0002098,2]
[322684143,1713214241976,-267.45828025,0.00020981,2]
[322684144,1713214241985,-1677.88216201,0.00020983,2]
[322684145,1713214241994,-259.71292123,0.00020984,2]
[322684146,1713214242003,-771.17090469,0.00020984,2]
[322684147,1713214242013,-293.88567399,0.00020985,2]
[322684148,1713214242022,-259.71292123,0.00020985,2]
[322684149,1713214242031,-267.45828025,0.00020987,2]
[322684150,1713214242040,-97482.83932297,0.00020987,2]
[322684151,1713214242050,-360.55747592,0.00020987,2]
[322684152,1713214242061,-259.71292122,0.00020988,2]
[322684153,1713214242070,-771.17090469,0.0002099,2]
[322684154,1713214242079,-936.10398089,0.0002099,2]
[322684155,1713214242088,-1677.88216201,0.00020991,2]
[322684156,1713214242099,-877.9232934,0.00020991,2]
[322684157,1713214242108,-293.88567399,0.00020991,2]
[322684158,1713214242117,-771.17090469,0.00020993,2]
[322684159,1713214242126,-97482.83932297,0.00020993,2]
[322684160,1713214242136,-1677.88216201,0.00020994,2]
[322684161,1713214242145,-771.17090468,0.00020994,2]
[322684162,1713214242154,-936.10398089,0.00020994,2]
[322684163,1713214242163,-250.83522669,0.00020994,2]
[322684164,1713214242173,-877.9232934,0.00020994,2]
[322684165,1713214242183,-267.45828025,0.00020995,2]
[322684166,1713214242191,-97482.83932297,0.00020996,2]
[322684167,1713214242201,-1677.88216201,0.00020997,2]
[322684168,1713214242210,-259.71292123,0.00020997,2]
[322684169,1713214242219,-293.88567399,0.00020998,2]
[322684170,1713214242228,-877.9232934,0.00020998,2]
[322684171,1713214242237,-771.17090468,0.00020998,2]
[322684172,1713214242246,-161.06954375,0.00020998,2]
[322684173,1713214242255,-196.05568338,0.00020998,2]
[322684174,1713214242264,-446.75207246,0.00020998,2]
[322684175,1713214242273,-156.26823793,0.00020998,2]
[322684177,1713214242283,-155.39166245,0.00020998,2]
[322684178,1713214242292,-325.09234905,0.00020998,2]
[322684180,1713214242301,-204.99833754,0.00020998,2]
[322684182,1713214242314,-185.78135859,0.00020998,2]
[322684183,1713214242323,-155.4815858,0.00020998,2]
[322684184,1713214242333,-1680.53225333,0.00020998,2]
[322684187,1713214242342,-3567.79190961,0.00020998,2]
[322684189,1713214242351,-216.96123047,0.00020998,2]
[322684191,1713214242360,-212.21488213,0.00020998,2]
[322684193,1713214242370,-309.85042417,0.00020998,2]
[322684194,1713214242379,-622.90312084,0.00020998,2]
[322684196,1713214242389,-7886.4047431,0.00020998,2]
[322684198,1713214242398,-169.12911613,0.00020998,2]
[322684199,1713214242407,-1182.77811126,0.00020998,2]
[322684200,1713214242416,-479.43175891,0.00020998,2]
[322684201,1713214242426,-156.21258437,0.00020998,2]
[322684202,1713214242435,-1301.12506218,0.00020998,2]
[322684203,1713214242444,-191.90200664,0.00020998,2]
[322684204,1713214242453,-201.84235747,0.00020998,2]
[322684206,1713214242462,-375.34102279,0.00020998,2]
[322684207,1713214242471,-155.86064272,0.00020998,2]
[322684208,1713214242481,-155.12567529,0.00020998,2]
[322684210,1713214242490,-155.69912468,0.00020998,2]
[322684212,1713214242500,-309.21169416,0.00020998,2]
[322684214,1713214242509,-158.64544017,0.00020998,2]
[322684216,1713214242519,-155.19450437,0.00020998,2]
[322684218,1713214242529,-159.46096094,0.00020998,2]
[322684219,1713214242541,-155.20898453,0.00020998,2]
[322684221,1713214242551,-157.94890058,0.00020998,2]
[322684222,1713214242563,-155.43788777,0.00020998,2]
[322684223,1713214242572,-155.67291549,0.00020998,2]
[322684224,1713214242582,-2349.48327212,0.00020998,2]
[322684225,1713214242592,-200.8343,0.00020998,2]
[322684226,1713214242603,-200.0,0.00020998,2]
[322684227,1713214242612,-259.71292122,0.00020998,2]
[322684228,1713214242623,-267.45828025,0.00020999,2]
[322684229,1713214242633,-155.0,0.00020999,2]
[322684230,1713214242643,-358.88337043,0.00020999,2]
[322684231,1713214242652,-206.9318143,0.00020999,2]
[322684232,1713214242662,-12147.44589705,0.00020999,2]
[322684233,1713214242671,-150.0,0.00020999,2]
[322684234,1713214242681,-38258.16779892,0.00020999,2]
[322684235,1713214242691,-5836.6670907,0.00020999,2]
[322684236,1713214242700,-500.0,0.00020999,2]
[322684237,1713214242710,-500.0,0.00020999,2]
[322684238,1713214242719,-500.0,0.00020999,2]
[322684239,1713214242728,-387.69678791,0.00020999,2]
[322684240,1713214242738,-377.98732568,0.00020999,2]
[322684241,1713214242747,-500.0,0.00020999,2]
[322684242,1713214242757,-550.0,0.00020999,2]
[322684243,1713214242767,-500.0,0.00020999,2]
[322684244,1713214242777,-500.0,0.00020999,2]
[322684245,1713214242786,-631.67041288,0.00020999,2]
[322684246,1713214242796,-295.70652593,0.00020999,2]
[322684247,1713214242806,-500.0,0.00020999,2]
[322684248,1713214242816,-500.0,0.00020999,2]
[322684249,1713214242825,-588.90137625,0.00020999,2]
[322684250,1713214242834,-500.0,0.00020999,2]
[322684251,1713214242844,-500.0,0.00020999,2]
[322684252,1713214242854,-267.43602983,0.00020999,2]
[322684253,1713214242864,-500.0,0.00020999,2]
[322684254,1713214242874,-217.37552148,0.00020999,2]
[322684255,1713214242883,-97482.83932297,0.00020999,2]
[322684256,1713214242892,-534719.94014258,0.00021,7]
[322684257,1713214242902,-568.8501134,0.00021,2]
[322684258,1713214242911,-5407598.71252907,0.00021,2]
[322684259,1713214242924,-332519.68866814,0.00021,2]
[322684260,1713214242957,-1208169.94022831,0.00021,2]
[322684344,1713214243692,-784.07647147,0.00021,2]
[322684346,1713214243704,-16235.02522512,0.00021,2]
[322684348,1713214243717,-1049.3952,0.00021,2]
[322684351,1713214243728,-3110.7679,0.00021,2]
[322684353,1713214243739,-4756.12008149,0.00021,2]
[322684355,1713214243750,-1566.05448998,0.00021,2]
[322684359,1713214243780,-1502872.39327326,0.00021,2]
[322684362,1713214243792,-137779.99999609,0.00021,2]
[322684364,1713214243803,-7732.54298006,0.00021,2]
[322684385,1713214245846,-616.81603865,0.00020557,2]
[322684386,1713214245857,-526.69659646,0.00020558,2]
[322684387,1713214245867,-409.56988444,0.00020999,2]
[322684388,1713214245877,-134.85067231,0.00021,2]
[322684389,1713214245926,-75777.48281095,0.00021,2]
[322684390,1713214245935,-715.62335084,0.00021,2]
[322684391,1713214245944,-72596.05080016,0.00021,2]
[322684392,1713214246066,-150.0,0.00020443,2]
[322684393,1713214246075,-326550.21067728,0.00021,2]
[322684394,1713214250594,-7500.0,0.000199,2]
[322684395,1713214250604,-418.54,0.000204,2]
[322684396,1713214250614,-150.0,0.000204,2]
[322684397,1713214250624,-521.35,0.000204,2]
[322684398,1713214250633,-908.48,0.000204,2]
[322684399,1713214250642,-150.0,0.000204,2]
[322684400,1713214250652,-412.51,0.000204,2]
[322684401,1713214250663,-162.52,0.000204,2]
[322684402,1713214250672,-150.0,0.00020443,2]
[322684403,1713214250682,-550.91954647,0.00020557,2]
[322684404,1713214250691,-120684.52883473,0.00021,2]
[322684405,1713214250912,-83461.62511025,0.00021,2]
[322684407,1713214463321,4233.27601304,0.00012,30]
[322684418,1713214706852,494.1,0.00017052,2]
[322684419,1713214884799,2226.59178981,0.00017052,2]
[322684437,1713214974015,200.26458802,0.00016967,2]
[322684438,1713214979179,155.0,0.00016966,2]
[322684445,1713215248295,469.39,0.00016459,2]
[322684449,1713215266002,306.5759911,0.00016966,2]
[322684481,1713215432167,-460.73102947,0.00018247,2]
[322684482,1713215432179,-156.08500918,0.00018247,2]
[322684483,1713215432188,-720.0,0.00018248,2]
[322684484,1713215432198,-202.10380821,0.00018249,2]
[322684485,1713215432207,-532.55824777,0.00018249,2]
[322684486,1713215432216,-712.0,0.0001825,2]
[322684487,1713215432226,-150.0,0.00018296,2]
[322684488,1713215432235,-23900.0,0.00018298,2]
[322684489,1713215432244,-2751.0,0.00018345,2]
[322684490,1713215432253,-701.00755865,0.00018392,2]
[322684491,1713215432264,-718.57027539,0.00018392,2]
[322684492,1713215432275,-1010.24136596,0.00018392,2]
[322684493,1713215432285,-1648.16,0.00018401,2]
[322684494,1713215432294,-10208.97,0.00018401,2]
[322684495,1713215432303,-159.65,0.00018435,2]
[322684496,1713215432312,-10000.0,0.00018494,2]
[322684497,1713215432322,-256.42,0.000186,2]
[322684498,1713215432331,-4566.67,0.00018666,2]
[322684499,1713215432341,-3634.84,0.00018708,2]
[322684500,1713215432350,-469.39,0.00018722,2]
[322684501,1713215432359,-885.89243388,0.00018816,2]
[322684502,1713215432369,-288.0,0.00018817,2]
[322684503,1713215432378,-3158.69872708,0.00018903,2]
[322684504,1713215432387,-18286.15,0.00018925,2]
[322684505,1713215432397,-3247.63,0.00018935,2]
[322684506,1713215432406,-703.59286453,0.00018979,2]
[322684507,1713215432415,-1200.0,0.00019,2]
[322684508,1713215432425,-1550.0,0.00019,3]
[322684509,1713215432434,-1625.78156584,0.00019078,2]
[322684510,1713215432443,-1000.0,0.00019079,2]
[322684511,1713215432454,-26993.00701604,0.0001908,2]
[322684512,1713215432501,-5530.20700961,0.0001908,2]
[322684513,1713215432544,-39673.5733314,0.0001908,2]
[322684514,1713215432553,-908.48,0.00019096,2]
[322684515,1713215432562,-908.48,0.00019141,2]
[322684516,1713215432570,-409.31,0.00019141,2]
[322684517,1713215432578,-908.48,0.00019141,2]
[322684518,1713215432587,-2122.65,0.00019178,2]
[322684519,1713215432596,-703.59286444,0.00019192,2]
[322684520,1713215432605,-908.48,0.00019241,2]
[322684521,1713215432614,-412.51,0.00019241,2]
[322684522,1713215432623,-1625.78156576,0.0001928,2]
[322684523,1713215432632,-150.0,0.0001937,2]
[322684524,1713215432642,-150.0,0.0001937,2]
[322684525,1713215432651,-150.0,0.00019378,2]
[322684526,1713215432660,-703.59286444,0.00019406,2]
[322684527,1713215432669,-908.48,0.00019441,2]
[322684528,1713215432679,-412.51,0.00019441,2]
[322684529,1713215432688,-412.51,0.00019441,2]
[322684530,1713215432698,-908.48,0.00019441,2]
[322684531,1713215432708,-1625.78156576,0.00019483,2]
[322684532,1713215432717,-519.43,0.00019578,2]
[322684533,1713215432726,-418.54,0.00019578,2]
[322684534,1713215432735,-150.0,0.00019578,2]
[322684535,1713215432744,-417.04,0.00019578,2]
[322684536,1713215432754,-150.0,0.00019578,2]
[322684537,1713215432763,-703.59286444,0.00019619,2]
[322684538,1713215432772,-156.32,0.00019655,2]
[322684539,1713215432781,-1625.78156576,0.00019685,2]
[322684540,1713215432791,-406.45503409,0.00019741,2]
[322684541,1713215432802,-6.05496591,0.00019741,2]
[322684542,1713215432812,-908.48,0.00019741,2]
[322684543,1713215432821,-1503.06191646,0.000198,2]
[322684544,1713215432864,-996.93808354,0.000198,2]
[322684545,1713215432877,-703.59286444,0.00019833,2]
[322684546,1713215432886,-418.54,0.00019878,2]
[322684547,1713215432895,-521.35,0.00019878,2]
[322684548,1713215432906,-150.0,0.00019878,2]
[322684549,1713215432915,-1625.78156576,0.00019888,2]
[322684550,1713215432924,-155.20898453,0.00019898,2]
[322684551,1713215432933,-157.94890058,0.00019898,2]
[322684552,1713215432943,-155.39166245,0.00019898,2]
[322684553,1713215432956,-622.90312084,0.00019898,2]
[322684554,1713215432966,-155.4815858,0.00019898,2]
[322684555,1713215432976,-469.60376975,0.00019898,2]
[322684556,1713215432986,-155.67291549,0.00019899,2]
[322684557,1713215432996,-57.28519683,0.00019899,2]
[322684558,1713215433009,-98.15269094,0.00019899,2]
[322684559,1713215433019,-159.46096094,0.00019899,2]
[322684560,1713215433028,-42.38634812,0.00019899,2]
[322684561,1713215433071,-153.66933526,0.00019899,2]
[322684562,1713215433080,-231.34979443,0.00019899,2]
[322684563,1713215433092,-143.99122836,0.00019899,2]
[322684564,1713215433101,-191.90200664,0.00019899,2]
[322684565,1713215433110,-158.64544017,0.00019899,2]
[322684566,1713215433119,-155.12567529,0.00019899,2]
[322684567,1713215433129,-1182.77811126,0.00019899,2]
[322684568,1713215433139,-200.8343,0.00019899,2]
[322684569,1713215433148,-156.26823793,0.00019899,2]
[322684570,1713215433157,-155.19450437,0.00019899,2]
[322684571,1713215433167,-161.06954375,0.00019899,2]
[322684572,1713215433176,-155.0,0.00019899,2]
[322684573,1713215433185,-200.0,0.00019899,2]
[322684574,1713215433194,-169.12911613,0.00019899,2]
[322684575,1713215433206,-7886.4047431,0.00019899,2]
[322684576,1713215433216,-479.43175891,0.00019899,2]
[322684577,1713215433225,-358.88337043,0.00019899,2]
[322684578,1713215433235,-1680.53225333,0.00019899,2]
[322684579,1713215433244,-309.21169416,0.00019899,2]
[322684580,1713215433253,-156.21258437,0.00019899,2]
[322684581,1713215433262,-212.21488213,0.00019899,2]
[322684582,1713215433272,-216.96123047,0.00019899,2]
[322684583,1713215433281,-309.85042417,0.00019899,2]
[322684584,1713215433291,-446.75207246,0.00019899,2]
[322684585,1713215433300,-325.09234905,0.00019899,2]
[322684586,1713215433309,-2349.48327212,0.00019899,2]
[322684587,1713215433318,-204.99833754,0.00019899,2]
[322684588,1713215433328,-1301.12506218,0.00019899,2]
[322684589,1713215433337,-30272.6657,0.000199,2]
[322684590,1713215433346,-245000.0,0.000199,2]
[322684591,1713215433355,-155.47526339,0.0001999,2]
[322684592,1713215433365,-155.86064272,0.00019998,2]
[322684593,1713215433374,-155.0,0.0002,2]
[322684594,1713215433383,-6216.8220722,0.0002,2]
[322684595,1713215433393,-185.78135859,0.0002,2]
[322684596,1713215433402,-155.69912468,0.0002,2]
[322684597,1713215433411,-150.22294239,0.0002,2]
[322684598,1713215433421,-32857.15031457,0.0002,2]
[322684599,1713215433465,-62123.42220001,0.0002,2]
[322684600,1713215433478,-4321.14263448,0.0002,2]
[322684601,1713215433491,-460.43123519,0.0002,2]
[322684602,1713215433503,-614.7279758,0.0002,2]
[322684603,1713215433515,-428.101543,0.0002,2]
[322684604,1713215433575,-658.25,0.0002,2]
[322684605,1713215433586,-67138.16346479,0.0002,2]
[322684629,1713215438502,-2599.51907496,0.0002,2]
[322684630,1713215438512,-670543.12842674,0.0002,2]
[322684631,1713215438522,-703.59286444,0.00020046,2]
[322684632,1713215438531,-908.48,0.00020055,2]
[322684633,1713215438540,-908.48,0.00020055,2]
[322684634,1713215438549,-908.48,0.00020055,2]
[322684635,1713215438558,-908.48,0.00020055,2]
[322684636,1713215438567,-706.31,0.00020055,2]
[322684637,1713215438576,-1638.0,0.00020068,2]
[322684638,1713215438585,-214.0,0.00020068,2]
[322684639,1713215438594,-531.274,0.00020068,2]
[322684640,1713215438603,-418.337,0.00020068,2]
[322684641,1713215438612,-5885.0,0.00020068,2]
[322684642,1713215438621,-1737.0,0.00020068,2]
[322684643,1713215438630,-5227.476,0.00020068,2]
[322684644,1713215438639,-37635.0,0.00020068,2]
[322684645,1713215438649,-1625.78156576,0.0002009,2]
[322684646,1713215438658,-3359.5061174,0.00020118,2]
[322684647,1713215438667,-210.0,0.00020125,2]
[322684648,1713215438676,-412.51,0.00020141,2]
[322684649,1713215438685,-908.48,0.00020141,2]
[322684650,1713215438695,-423.65,0.00020183,2]
[322684651,1713215438707,-150.0,0.00020192,2]
[322684652,1713215438716,-150.0,0.00020192,2]
[322684653,1713215438725,-150.0,0.00020192,2]
[322684654,1713215438734,-150.0,0.00020192,2]
[322684655,1713215438743,-150.0,0.00020192,2]
[322684656,1713215438752,-150.0,0.00020192,2]
[322684657,1713215438761,-703.59286444,0.0002026,2]
[322684658,1713215438771,-418.54,0.00020278,2]
[322684659,1713215438780,-521.35,0.00020278,2]
[322684660,1713215438791,-162.08,0.00020278,2]
[322684661,1713215438800,-150.0,0.00020278,2]
[322684662,1713215438809,-150.0,0.00020278,2]
[322684663,1713215438819,-3359.5061174,0.00020292,2]
[322684664,1713215438828,-1625.78156576,0.00020293,2]
[322684665,1713215438837,-3096.0,0.000204,2]
[322684666,1713215438847,-150.0,0.00020443,2]
[322684667,1713215438856,-1469.0,0.00020443,2]
[322684668,1713215438867,-461.0,0.00020443,2]
[322684669,1713215438877,-968.0,0.00020443,2]
[322684670,1713215438886,-2292.0,0.00020443,2]
[322684671,1713215438895,-541.0,0.00020443,2]
[322684672,1713215438904,-1228.0,0.00020443,2]
[322684673,1713215438915,-608.0,0.00020443,2]
[322684674,1713215438924,-1949.0,0.00020443,2]
[322684675,1713215438933,-806.0,0.00020443,2]
[322684676,1713215438942,-1472.0,0.00020443,2]
[322684677,1713215438953,-399.0,0.00020443,2]
[322684678,1713215438963,-2335.403,0.00020443,2]
[322684679,1713215438972,-2437.0,0.00020443,2]
[322684680,1713215438982,-703.59286444,0.00020473,2]
[322684681,1713215438991,-1625.78156576,0.00020495,2]
[322684682,1713215439000,-150.0,0.000205,2]
[322684683,1713215439009,-712.0,0.00020532,2]
[322684684,1713215439018,-416.392397,0.00020548,2]
[322684685,1713215439027,-3359.5061174,0.00020626,2]
[322684686,1713215439036,-703.59286444,0.00020687,2]
[322684687,1713215439045,-1625.78156576,0.00020698,2]
[322684688,1713215439055,-267.0,0.0002079,2]
[322684689,1713215439064,-411.87074189,0.0002079,2]
[322684690,1713215439073,-4971.8029287,0.0002082,2]
[322684691,1713215439081,-4971.8029286,0.00020827,2]
[322684692,1713215439090,-500.0,0.00020831,2]
[322684693,1713215439099,-200.0,0.00020832,2]